bitfinex-derivatives/quotes_BTCF0:USTF0_20251030
["timestamp","ask_amount","ask_price","bid_price","bid_amount"]
[1761841441533,0.01369,108050.0,108030.0,0.65600624]
[1761841441534,0.05942,108050.0,108040.0,0.04502]
[1761841441735,0.40200058,108050.0,108040.0,0.40582]
[1761841442232,0.38831058,108050.0,108040.0,0.40582]
[1761841442433,0.36589058,108050.0,108040.0,0.64704624]
[1761841442629,0.02239,108060.0,108040.0,0.60202624]
[1761841442835,0.02177599,108060.0,108050.0,0.65368624]
[1761841443335,0.37898,108070.0,108060.0,0.0578]
[1761841443634,0.40074039,108070.0,108060.0,0.4186]
[1761841444832,0.40074039,108070.0,108060.0,0.40571]
[1761841445031,0.40574039,108070.0,108060.0,0.40571]
[1761841445219,0.40574039,108070.0,108060.0,0.04491]
[1761841446029,0.42574039,108070.0,108060.0,0.02315]
[1761841446435,0.05619,108060.0,108050.0,1.8608]
[1761841447235,0.05619,108060.0,108050.0,1.87369]
[1761841447236,0.043,108060.0,108050.0,1.87369]
[1761841447428,0.044,108060.0,108050.0,1.87369]
[1761841447934,0.05719,108060.0,108050.0,1.8608]
[1761841448236,0.002,108060.0,108050.0,1.8830685]
[1761841448439,0.02375,108060.0,108050.0,1.8830685]
[1761841448626,0.002,108060.0,108050.0,1.8830685]
[1761841448828,0.05819,108060.0,108050.0,1.87369]
[1761841449138,0.043,108060.0,108050.0,1.87369]
[1761841449436,0.05619,108060.0,108050.0,1.8608]
[1761841454638,0.05619,108060.0,108050.0,2.0071]
[1761841454844,0.043,108060.0,108050.0,2.01994]
[1761841455041,0.04349,108070.0,108060.0,0.05085]
[1761841455342,0.3779,108080.0,108070.0,0.043]
[1761841455540,0.39952096,108080.0,108070.0,0.043]
[1761841455944,0.38583096,108080.0,108070.0,0.4165]
[1761841456136,0.32072,108080.0,108070.0,0.4165]
[1761841456541,0.32072,108080.0,108070.0,0.65772624]
[1761841456934,0.32072,108080.0,108070.0,0.97844624]
[1761841457335,0.32072,108080.0,108070.0,1.07098714]
[1761841457539,0.01296,108100.0,108070.0,1.07098714]
[1761841457540,0.05706,108100.0,108090.0,0.04381]
[1761841457742,0.07866658,108100.0,108090.0,0.04381]
[1761841457937,0.06570658,108100.0,108090.0,0.05664]
[1761841458144,0.06570658,108100.0,108090.0,0.41744]
[1761841458446,0.38790466,108100.0,108090.0,0.40461]
[1761841458742,0.37877,108100.0,108090.0,0.40461]
[1761841458940,0.37877,108100.0,108090.0,0.42661]
[1761841459137,0.37977,108100.0,108090.0,0.42661]
[1761841460846,0.38925826,108100.0,108090.0,0.42661]
[1761841461545,0.37977,108100.0,108090.0,0.42661]
[1761841462244,0.38918314,108100.0,108090.0,0.42661]
[1761841462738,0.37977,108100.0,108090.0,0.42661]
[1761841464143,0.37977,108100.0,108090.0,0.43945]
[1761841464144,0.38740116,108100.0,108090.0,0.43945]
[1761841464340,0.36582,108100.0,108090.0,0.68067624]
[1761841466453,0.37868,108100.0,108090.0,0.43945]
[1761841466644,0.37868,108100.0,108090.0,0.42661]
[1761841468247,0.39868,108100.0,108090.0,0.42661]
[1761841468549,0.61990624,108100.0,108090.0,0.40479]
[1761841468951,0.61990624,108100.0,108090.0,0.42797]
[1761841469953,0.64149875,108100.0,108090.0,0.42797]
[1761841470446,0.40027251,108100.0,108090.0,0.42797]
[1761841476145,0.37868,108100.0,108090.0,0.42797]
[1761841476653,0.04487,108100.0,108090.0,0.44081]
[1761841476842,0.37833,108100.0,108090.0,0.41397]
[1761841477253,0.37833,108100.0,108090.0,0.42681]
[1761841478160,0.37833,108100.0,108090.0,0.41881]
[1761841478342,0.38699618,108100.0,108090.0,0.41881]
[1761841478543,0.06639618,108100.0,108090.0,0.41881]
[1761841478747,0.38699618,108100.0,108090.0,0.66003624]
[1761841478949,0.39985618,108100.0,108090.0,0.40597]
[1761841479257,0.66108242,108100.0,108090.0,0.40597]
[1761841479554,0.05616,108090.0,108080.0,0.19126]
[1761841479757,1.00971926,108090.0,108080.0,0.1463]
[1761841480655,0.05616,108070.0,108060.0,0.40576]
[1761841480855,0.37672,108070.0,108060.0,0.40576]
[1761841481259,0.37672,108070.0,108060.0,0.41846]
[1761841481448,0.37672,108070.0,108060.0,0.40576]
[1761841481761,0.36386,108070.0,108060.0,0.65968624]
[1761841482357,0.36386,108070.0,108060.0,0.70946452]
[1761841482851,0.37672,108070.0,108060.0,0.70946452]
[1761841483057,0.37672,108070.0,108060.0,0.69676452]
[1761841483352,0.36386,108070.0,108060.0,0.46823828]
[1761841483855,0.37672,108070.0,108060.0,0.45553828]
[1761841485057,0.37872,108070.0,108060.0,0.45553828]
[1761841487059,0.40031995,108070.0,108060.0,0.60183828]
[1761841487362,0.5715424,108070.0,108060.0,0.79466068]
[1761841488864,0.37872,108070.0,108060.0,0.79466068]
[1761841489664,0.36586,108070.0,108060.0,1.00032308]
[1761841490963,0.002,108070.0,108060.0,1.09563248]
[1761841491163,0.002,108070.0,108060.0,2.01387248]
[1761841491364,0.002,108070.0,108060.0,1.36665028]
[1761841493362,0.002,108070.0,108060.0,1.38495138]
[1761841495764,0.002,108070.0,108060.0,1.45106383]
[1761841496965,0.002,108070.0,108060.0,1.44830383]
[1761841497468,0.002,108070.0,108060.0,1.45106383]
[1761841498271,0.002,108070.0,108060.0,2.05106383]
[1761841499167,0.002,108070.0,108060.0,2.04830383]
[1761841499361,0.002,108070.0,108060.0,2.05106383]
[1761841499560,0.002,108070.0,108060.0,2.04830383]
[1761841499762,0.002,108070.0,108060.0,2.05106383]
[1761841500361,0.05502,108100.0,108090.0,0.04609]
[1761841500572,0.06375177,108100.0,108090.0,0.82333198]
[1761841500774,0.06375177,108100.0,108090.0,0.91585568]
[1761841500965,0.06375177,108100.0,108090.0,0.56589]
[1761841501166,0.07641177,108100.0,108090.0,0.5071]
[1761841501366,0.84095375,108100.0,108090.0,0.1463]
[1761841502164,0.56721177,108100.0,108090.0,0.1463]
[1761841502362,0.76721177,108100.0,108090.0,0.1463]
[1761841503168,1.17095375,108100.0,108090.0,0.1463]
[1761841503367,0.76721177,108100.0,108090.0,0.1463]
[1761841503671,0.51721177,108100.0,108090.0,0.1463]
[1761841503879,0.05482,108080.0,108070.0,0.60272435]
[1761841504860,0.05482,108080.0,108070.0,0.55663435]
[1761841505268,0.05482,108080.0,108070.0,0.60272435]
[1761841505972,0.05482,108080.0,108070.0,0.55663435]
[1761841506873,0.05758,108080.0,108070.0,0.55663435]
[1761841507077,0.05482,108080.0,108070.0,0.57983435]
[1761841507367,0.07482,108080.0,108070.0,0.41033435]
[1761841507575,0.05482,108080.0,108070.0,0.41033435]
[1761841508073,0.05482,108080.0,108070.0,0.45642435]
[1761841509166,0.07642526,108080.0,108070.0,0.45642435]
[1761841510373,0.39730526,108080.0,108070.0,0.46441435]
[1761841510566,0.38464526,108080.0,108070.0,0.46441435]
[1761841510768,0.39730526,108080.0,108070.0,0.46441435]
[1761841511067,0.39730526,108080.0,108070.0,0.45642435]
[1761841511474,0.04216,108080.0,108070.0,0.46441435]
[1761841511668,0.363,108080.0,108070.0,0.46441435]
[1761841513073,0.37566,108080.0,108070.0,0.45642435]
[1761841513280,0.39726529,108080.0,108070.0,0.60272435]
[1761841514368,0.32084,108080.0,108070.0,1.01445633]
[1761841514568,0.363,108080.0,108070.0,1.01445633]
[1761841514776,0.363,108080.0,108070.0,0.61071435]
[1761841519380,0.37589,108080.0,108070.0,0.60272435]
[1761841520580,0.39752945,108080.0,108070.0,0.60272435]
[1761841521776,0.39752945,108080.0,108070.0,0.55663435]
[1761841522578,0.39752945,108080.0,108070.0,0.41033435]
[1761841522984,0.39752945,108080.0,108070.0,0.43225435]
[1761841523277,0.39752945,108080.0,108070.0,0.41033435]
[1761841523684,0.41752945,108080.0,108070.0,0.41033435]
[1761841524584,0.41752945,108080.0,108070.0,0.3608]
[1761841524983,0.39752945,108080.0,108070.0,0.3608]
[1761841525179,0.41752945,108080.0,108070.0,0.3608]
[1761841525780,0.39752945,108080.0,108070.0,0.3608]
[1761841526083,0.05697,108070.0,108060.0,0.52902]
[1761841526281,0.09860945,108070.0,108060.0,0.5071]
[1761841526481,0.05697,108060.0,108050.0,2.05663435]
[1761841526784,0.37761,108060.0,108050.0,2.05663435]
[1761841527185,0.39761,108060.0,108050.0,2.05663435]
[1761841527488,0.37761,108060.0,108050.0,2.05663435]
[1761841527784,0.78135198,108060.0,108050.0,0.04953435]
[1761841528089,0.78135198,108060.0,108040.0,0.04953435]
[1761841528090,0.05697,108050.0,108040.0,0.04953435]
[1761841528276,0.26645742,108050.0,108040.0,1.54953435]
[1761841528479,0.05697,108040.0,108030.0,0.41033435]
[1761841528793,0.39765,108040.0,108030.0,0.04953435]
[1761841529083,0.39765,108040.0,108030.0,1.54953435]
[1761841529275,0.37765,108040.0,108030.0,1.54953435]
[1761841529473,0.37765,108040.0,108030.0,1.91033435]
[1761841529790,0.36435,108040.0,108030.0,1.87364]
[1761841530086,0.36435,108040.0,108030.0,1.92418156]
[1761841531185,0.32072,108040.0,108030.0,1.92418156]
[1761841531381,0.05697,108060.0,108050.0,0.0437]
[1761841531685,0.69769,108060.0,108050.0,0.0437]
[1761841532087,0.37769,108060.0,108050.0,0.0437]
[1761841532787,0.32072,108060.0,108050.0,0.41235]
[1761841533086,0.32072,108060.0,108050.0,0.4618685]
[1761841533688,0.34268,108060.0,108050.0,0.4618685]
[1761841533890,0.32172,108060.0,108050.0,0.4618685]
[1761841534091,0.36535,108060.0,108050.0,0.4618685]
[1761841534386,0.36435,108060.0,108050.0,0.4618685]
[1761841534892,0.36435,108060.0,108050.0,0.41235]
[1761841535281,0.37769,108060.0,108050.0,0.41235]
[1761841535584,0.3992906,108060.0,108050.0,0.0437]
[1761841535791,0.05697,108050.0,108040.0,0.4045]
[1761841535992,0.0785706,108050.0,108040.0,0.4045]
[1761841537093,0.0785706,108050.0,108040.0,0.41235]
[1761841537094,0.04363,108050.0,108040.0,0.41235]
[1761841537284,0.04363,108050.0,108040.0,0.42151208]
[1761841538387,0.04363,108050.0,108040.0,0.41235]
[1761841538593,0.05697,108060.0,108050.0,0.0437]
[1761841538792,0.39932313,108060.0,108050.0,0.0437]
[1761841539092,0.39932313,108060.0,108050.0,0.4045]
[1761841539480,0.37773,108060.0,108050.0,0.4172]
[1761841539684,0.05697,108070.0,108060.0,0.05169]
[1761841539890,0.06522042,108070.0,108060.0,0.41249]
[1761841540085,0.38594042,108070.0,108060.0,0.41249]
[1761841540286,0.36435,108070.0,108060.0,0.41249]
[1761841540891,0.36535,108070.0,108060.0,0.41249]
[1761841541593,0.36435,108070.0,108060.0,0.41249]
[1761841542296,0.37769,108070.0,108060.0,0.41249]
[1761841542494,0.37769,108070.0,108060.0,0.4045]
[1761841542794,0.39919507,108070.0,108060.0,0.4045]
[1761841545297,0.37769,108070.0,108060.0,0.4045]
[1761841545599,0.37769,108070.0,108060.0,0.5508]
[1761841548390,0.39917941,108070.0,108060.0,0.5508]
[1761841551593,0.39917941,108070.0,108060.0,0.55879]
[1761841552190,0.36435,108070.0,108060.0,0.7997972]
[1761841552596,0.36431,108070.0,108060.0,0.7997972]
[1761841552796,0.37732,108070.0,108060.0,0.5508]
[1761841553000,0.39882499,108070.0,108060.0,0.5508]
[1761841555304,0.38581499,108070.0,108060.0,0.55879]
[1761841555494,0.38581499,108070.0,108060.0,0.7997972]
[1761841556505,0.34218499,108070.0,108060.0,0.7997972]
[1761841556803,0.36434499,108070.0,108060.0,0.7997972]
[1761841557404,0.36434499,108070.0,108060.0,0.8923466]
[1761841557703,0.02150499,108070.0,108060.0,1.3997972]
[1761841557901,0.08249015,108090.0,108080.0,0.04268]
[1761841558100,0.10400379,108090.0,108080.0,0.41133]
[1761841558307,0.42468379,108090.0,108080.0,0.41133]
[1761841558499,0.39976364,108090.0,108080.0,0.40348]
[1761841560309,0.53176364,108090.0,108080.0,0.40348]
[1761841560601,0.05724,108080.0,108070.0,0.40348]
[1761841560801,0.31976084,108080.0,108070.0,0.40348]
[1761841561404,0.33976084,108080.0,108070.0,0.3608]
[1761841561603,0.05724,108070.0,108060.0,0.40348]
[1761841561804,0.39939364,108070.0,108060.0,0.40348]
[1761841562105,0.05724,108060.0,108050.0,0.4103185]
[1761841562408,0.05724,108050.0,108040.0,0.4103185]
[1761841562599,1.00891233,108050.0,108040.0,0.0495185]
[1761841562795,0.05724,108040.0,108030.0,0.4529985]
[1761841563503,0.05724,108040.0,108030.0,0.41632]
[1761841563504,0.02216,108040.0,108030.0,0.41632]
[1761841563710,0.378,108050.0,108040.0,0.04268]
[1761841563916,0.378,108050.0,108040.0,0.45300951]
[1761841564406,0.3873171,108050.0,108040.0,0.45300951]
[1761841564907,0.378,108050.0,108040.0,0.45300951]
[1761841566606,0.75052138,108050.0,108040.0,0.3608]
[1761841566803,0.66052138,108050.0,108040.0,0.3608]
[1761841567007,0.39951418,108050.0,108040.0,0.40348]
[1761841567400,0.05724,108050.0,108040.0,0.46085951]
[1761841567605,0.37792,108050.0,108040.0,0.46085951]
[1761841567808,0.37792,108050.0,108040.0,0.45300951]
[1761841568511,0.36491,108050.0,108040.0,0.46085951]
[1761841569113,0.01301,108060.0,108040.0,0.46085951]
[1761841569114,0.37792,108060.0,108050.0,0.04268]
[1761841569407,0.38704457,108060.0,108050.0,0.04268]
[1761841569709,0.40855585,108060.0,108050.0,0.04268]
[1761841569899,0.05724,108050.0,108040.0,0.45300951]
[1761841571205,0.37796,108050.0,108040.0,0.45300951]
[1761841571400,0.05724,108050.0,108040.0,0.45300951]
[1761841571606,0.05724,108060.0,108050.0,0.04268]
[1761841571910,0.39946919,108060.0,108050.0,0.04268]
[1761841572112,0.39946919,108060.0,108050.0,0.40348]
[1761841572311,0.39946919,108060.0,108050.0,0.04268]
[1761841572609,0.39946919,108060.0,108050.0,0.40348]
[1761841572811,0.37796,108060.0,108050.0,0.40348]
[1761841573006,0.37896,108060.0,108050.0,0.40348]
[1761841573409,0.34388,108060.0,108050.0,0.6444872]
[1761841573604,0.32172,108060.0,108050.0,0.78657461]
[1761841574413,0.32172,108060.0,108050.0,0.69401671]
[1761841574612,0.001,108060.0,108050.0,0.79596472]
[1761841574817,0.04423,108080.0,108070.0,0.04268]
[1761841575006,0.38641593,108080.0,108070.0,0.40348]
[1761841575501,0.36434593,108080.0,108070.0,0.76428]
[1761841575908,0.38722593,108080.0,108070.0,0.76428]
[1761841576515,0.34218593,108080.0,108070.0,0.76428]
[1761841576716,0.34318593,108080.0,108070.0,0.76428]
[1761841576921,0.36539593,108080.0,108070.0,0.76428]
[1761841577214,0.38827593,108080.0,108070.0,0.76428]
[1761841577414,0.40153593,108080.0,108070.0,0.76428]
[1761841577810,0.32458313,108080.0,108070.0,0.76428]
[1761841578017,0.32182313,108080.0,108070.0,0.74275]
[1761841578217,0.08081593,108080.0,108070.0,0.77716]
[1761841578404,0.06755593,108080.0,108070.0,0.77716]
[1761841579221,0.06755593,108080.0,108070.0,0.8697008]
[1761841579222,0.02246593,108080.0,108070.0,0.8697008]
[1761841579415,0.02246593,108080.0,108070.0,0.77716]
[1761841579617,0.04467593,108080.0,108070.0,0.77716]
[1761841579814,0.06755593,108080.0,108070.0,0.77716]
[1761841580010,0.10081593,108080.0,108070.0,0.76446]
[1761841580215,0.32182313,108080.0,108070.0,0.76446]
[1761841580717,0.06755593,108080.0,108070.0,0.77782]
[1761841580913,0.07981593,108080.0,108070.0,0.76446]
[1761841581412,0.07981593,108080.0,108070.0,0.77782]
[1761841581613,0.07981593,108080.0,108070.0,0.76446]
[1761841582324,0.06655593,108080.0,108070.0,0.77604]
[1761841582816,0.08034593,108080.0,108070.0,0.77604]
[1761841583723,0.08034593,108080.0,108070.0,0.76446]
[1761841584820,0.08034593,108080.0,108070.0,0.74275]
[1761841585020,0.05837,108070.0,108060.0,0.3608]
[1761841585227,0.05837,108060.0,108050.0,0.40611]
[1761841585535,0.3193772,108060.0,108050.0,0.40611]
[1761841585718,0.2993772,108060.0,108050.0,0.40611]
[1761841585918,0.2993772,108060.0,108050.0,0.3608]
[1761841586514,0.2993772,108060.0,108050.0,0.38509]
[1761841586714,0.2993772,108060.0,108050.0,0.40711]
[1761841586910,0.04458,108060.0,108050.0,0.40711]
[1761841588222,0.04458,108060.0,108050.0,0.40811]
[1761841589024,0.03697,108070.0,108060.0,0.04531]
[1761841589323,0.40059888,108070.0,108060.0,0.40611]
[1761841589525,0.40059888,108070.0,108060.0,0.41401]
[1761841589717,0.02154888,108070.0,108060.0,0.6550172]
[1761841590024,0.36526,108080.0,108070.0,0.04531]
[1761841590221,0.38680966,108080.0,108070.0,0.40611]
[1761841590524,0.40059966,108080.0,108070.0,0.40611]
[1761841592323,0.66160686,108080.0,108070.0,0.40611]
[1761841592717,0.04458,108070.0,108060.0,0.41401]
[1761841593024,0.02154966,108070.0,108060.0,0.41401]
[1761841593328,0.04458,108070.0,108060.0,0.41401]
[1761841593527,0.06612966,108070.0,108060.0,0.41401]
[1761841594326,0.06612966,108070.0,108060.0,0.40611]
[1761841595231,0.06612966,108070.0,108060.0,0.41401]
[1761841596721,0.06612966,108070.0,108060.0,0.40611]
[1761841597020,0.06612966,108070.0,108060.0,0.41401]
[1761841598222,0.08612966,108070.0,108060.0,0.41401]
[1761841598526,0.08612966,108070.0,108060.0,0.40611]
[1761841598918,0.09991966,108070.0,108060.0,0.40611]
[1761841600028,0.09991966,108070.0,108060.0,0.41401]
[1761841600225,0.06612966,108070.0,108060.0,0.41401]
[1761841600927,0.02154966,108070.0,108060.0,1.3475666]
[1761841601125,0.04632015,108090.0,108080.0,0.05229]
[1761841601437,0.39034412,108090.0,108080.0,0.41309]
[1761841601926,0.36716412,108090.0,108080.0,0.41309]
[1761841602531,0.41174412,108090.0,108080.0,0.41309]
[1761841603432,0.41174412,108090.0,108080.0,0.42254407]
[1761841603631,0.04648412,108090.0,108080.0,1.0148972]
[1761841603924,0.02156397,108090.0,108080.0,1.0148972]
[1761841604128,0.06950015,108100.0,108090.0,0.05926]
[1761841604320,0.09106766,108100.0,108090.0,0.42006]
[1761841604521,0.10485766,108100.0,108090.0,0.42006]
[1761841604720,0.34586486,108100.0,108090.0,0.04531]
[1761841605132,0.34586486,108100.0,108090.0,0.40611]
[1761841605317,0.38586486,108100.0,108090.0,0.40611]
[1761841606125,0.05837,108090.0,108080.0,0.40611]
[1761841606429,0.40065751,108090.0,108080.0,0.40611]
[1761841607031,0.40065751,108090.0,108080.0,0.55241]
[1761841610627,0.40341751,108090.0,108080.0,0.55241]
[1761841610836,0.40065751,108090.0,108080.0,0.55241]
[1761841612923,0.40065751,108090.0,108080.0,0.40611]
[1761841616132,0.42065751,108090.0,108080.0,0.40611]
[1761841616328,0.40065751,108090.0,108080.0,0.40611]
[1761841616734,0.38686751,108090.0,108080.0,0.41309]
[1761841616933,0.02156751,108090.0,108080.0,0.41309]
[1761841617133,0.04701015,108100.0,108090.0,0.05816]
[1761841617326,0.04649868,108100.0,108090.0,0.82284817]
[1761841617637,0.02157853,108100.0,108090.0,0.82284817]
[1761841619737,0.02157853,108100.0,108090.0,0.41896]
[1761841620225,0.04366853,108100.0,108090.0,0.41896]
[1761841620535,0.02157853,108100.0,108090.0,0.41896]
[1761841620737,0.06564853,108100.0,108090.0,0.41896]
[1761841621036,0.07953853,108100.0,108090.0,0.41896]
[1761841621238,0.06564853,108100.0,108090.0,0.41896]
[1761841621631,0.07953853,108100.0,108090.0,0.41896]
[1761841621834,0.10445868,108100.0,108090.0,0.41896]
[1761841622140,0.10445868,108100.0,108090.0,0.40606]
[1761841623946,0.10306808,108100.0,108090.0,0.40606]
[1761841624426,0.10306808,108100.0,108090.0,0.41896]
[1761841624629,0.10306808,108100.0,108090.0,0.40606]
[1761841626031,0.02018793,108100.0,108090.0,0.41896]
[1761841626232,0.02018793,108100.0,108090.0,0.82284817]
[1761841626834,0.02018793,108100.0,108090.0,0.91537177]
[1761841627441,0.02018793,108100.0,108090.0,0.82284817]
[1761841627642,0.02018793,108100.0,108090.0,1.01867768]
[1761841627840,0.02018793,108100.0,108090.0,0.61478951]
[1761841628242,0.3206,108110.0,108100.0,0.05816]
[1761841628540,0.36467,108110.0,108100.0,0.41896]
[1761841629143,0.3206,108110.0,108100.0,0.41896]
[1761841629441,0.38955015,108120.0,108110.0,0.05526]
[1761841629641,0.38955015,108120.0,108110.0,0.41606]
[1761841630145,0.82844817,108140.0,108110.0,0.41606]
[1761841630146,0.04704938,108140.0,108130.0,0.0924894]
[1761841630454,0.0388162,108150.0,108140.0,0.0924809]
[1761841630635,0.01389,108150.0,108140.0,1.09636907]
[1761841630941,0.0388162,108160.0,108150.0,0.0924724]
[1761841631140,0.04712493,108170.0,108150.0,0.0924724]
[1761841631141,0.01389,108170.0,108160.0,0.0924638]
[1761841631532,0.01389,108170.0,108160.0,0.0952238]
[1761841631727,0.01389,108170.0,108160.0,0.49911197]
[1761841632339,0.01389,108170.0,108160.0,0.57223335]
[1761841632649,0.01389,108180.0,108170.0,0.0924552]
[1761841632942,0.01389,108180.0,108170.0,1.18254337]
[1761841633143,0.01389,108180.0,108170.0,1.09008817]
[1761841633340,0.01389,108180.0,108170.0,1.18254337]
[1761841634140,0.01389,108200.0,108180.0,0.0924461]
[1761841634332,0.01389,108200.0,108190.0,1.44804817]
[1761841634641,0.01389,108200.0,108190.0,3.05770033]
[1761841635437,0.01389,108220.0,108190.0,3.65770033]
[1761841635641,0.01389,108220.0,108210.0,1.12548817]
[1761841635841,0.03547,108220.0,108210.0,1.46242223]
[1761841636633,0.05698,108220.0,108210.0,1.05845406]
[1761841638948,0.12784869,108220.0,108210.0,1.05845406]
[1761841641747,0.12757869,108220.0,108210.0,1.55476333]
[1761841643143,0.08475869,108220.0,108210.0,1.55476333]
[1761841643450,0.01389,108220.0,108210.0,1.15087516]
[1761841643638,0.01389,108220.0,108210.0,1.55752333]
[1761841643839,0.01389,108240.0,108230.0,0.092404]
[1761841644045,0.01389,108240.0,108230.0,1.55438623]
[1761841644740,0.05671,108240.0,108230.0,1.55438623]
[1761841645055,0.01389,108240.0,108230.0,1.55438623]
[1761841645442,0.01389,108240.0,108230.0,1.55538623]
[1761841646042,0.01389,108240.0,108230.0,1.55814623]
[1761841646342,0.01389,108240.0,108230.0,1.55538623]
[1761841646542,0.03519,108240.0,108230.0,1.55538623]
[1761841647149,0.05671,108240.0,108230.0,1.15149806]
[1761841647350,0.05671,108240.0,108230.0,1.06009406]
[1761841647549,0.05671,108240.0,108230.0,1.05993406]
[1761841647854,0.12757869,108240.0,108230.0,1.05993406]
[1761841648149,0.12757869,108240.0,108230.0,0.73805406]
[1761841648351,0.12757869,108240.0,108230.0,0.37725406]
[1761841648547,0.14757869,108240.0,108230.0,0.01645406]
[1761841648753,0.04282,108210.0,108200.0,0.3608]
[1761841648957,0.04282,108210.0,108200.0,0.38923015]
[1761841649253,0.04282,108210.0,108200.0,0.79311832]
[1761841649852,0.04282,108210.0,108200.0,0.48165975]
[1761841650447,0.04282,108210.0,108200.0,0.88554792]
[1761841651353,0.04282,108210.0,108200.0,0.89475273]
[1761841651548,0.04282,108210.0,108200.0,0.89575273]
[1761841652052,0.04282,108210.0,108200.0,0.80332313]
[1761841652252,0.04282,108210.0,108200.0,0.39023015]
[1761841653158,0.04282,108210.0,108200.0,0.48165975]
[1761841653354,0.04282,108210.0,108200.0,0.38923015]
[1761841653546,0.04282,108210.0,108200.0,0.39023015]
[1761841654256,0.04382,108210.0,108200.0,0.38923015]
[1761841655141,0.04382,108210.0,108200.0,0.41382233]
[1761841657358,0.04382,108210.0,108200.0,0.94303921]
[1761841657861,0.04382,108210.0,108200.0,0.9101401]
[1761841658359,0.04382,108210.0,108200.0,0.51455886]
[1761841658764,0.04382,108210.0,108200.0,0.42212926]
[1761841659152,0.04382,108210.0,108200.0,0.47165877]
[1761841659461,0.04382,108210.0,108200.0,0.56408837]
[1761841659755,0.04382,108210.0,108200.0,0.93507743]
[1761841660259,0.001,108210.0,108200.0,1.27626037]
[1761841660459,0.001,108210.0,108200.0,1.24783022]
[1761841660655,0.001,108210.0,108200.0,1.27705274]
[1761841660861,0.001,108210.0,108200.0,1.29058678]
[1761841661158,0.001,108210.0,108200.0,1.28782678]
[1761841661560,0.001,108210.0,108200.0,1.29058678]
[1761841661759,0.001,108210.0,108200.0,1.365071]
[1761841662459,0.001,108210.0,108200.0,1.362311]
[1761841662663,0.001,108210.0,108200.0,1.365071]
[1761841663853,0.001,108210.0,108200.0,1.29895855]
[1761841664054,0.001,108210.0,108200.0,1.38197948]
[1761841664658,0.001,108210.0,108200.0,1.36844544]
[1761841664965,0.001,108210.0,108200.0,1.33481291]
[1761841665658,0.0223,108210.0,108200.0,1.33205291]
[1761841665855,0.05766,108210.0,108200.0,1.33205291]
[1761841666057,0.05766,108210.0,108200.0,1.3155945]
[1761841668568,0.03614,108210.0,108200.0,1.3155945]
[1761841669864,0.05766,108210.0,108200.0,1.3155945]
[1761841671364,0.01484,108210.0,108200.0,1.3183545]
[1761841671952,0.01484,108210.0,108200.0,1.3155945]
[1761841672266,0.01484,108210.0,108200.0,1.3183545]
[1761841672464,0.01484,108210.0,108200.0,1.3155945]
[1761841672652,0.05794,108210.0,108200.0,1.3155945]
[1761841673361,0.01484,108210.0,108200.0,1.39499073]
[1761841673865,0.01484,108210.0,108200.0,1.99499073]
[1761841674570,0.01484,108210.0,108200.0,2.04437913]
[1761841675266,0.01484,108210.0,108200.0,1.99499073]
[1761841675560,0.01484,108210.0,108200.0,1.99223073]
[1761841675763,0.01484,108210.0,108200.0,1.39223073]
[1761841675967,0.05794,108210.0,108200.0,1.17667431]
[1761841676660,0.05794,108210.0,108200.0,1.14374432]
[1761841677464,0.05794,108210.0,108200.0,1.29004432]
[1761841680763,0.03584,108210.0,108200.0,1.29004432]
[1761841680958,0.01484,108210.0,108200.0,1.29004432]
[1761841681160,0.01484,108210.0,108200.0,1.56599651]
[1761841681372,0.01484,108210.0,108200.0,1.54129073]
[1761841681670,0.01484,108210.0,108200.0,1.53767165]
[1761841682372,0.01484,108210.0,108200.0,1.39137165]
[1761841682565,0.01384,108220.0,108210.0,0.092421]
[1761841682762,0.01384,108220.0,108210.0,0.74380944]
[1761841683772,0.01484,108220.0,108210.0,0.74380944]
[1761841684158,0.01584,108220.0,108210.0,0.72184664]
[1761841684361,0.01584,108220.0,108210.0,0.71908664]
[1761841684557,0.01584,108220.0,108210.0,1.34656944]
[1761841685060,0.01584,108220.0,108210.0,0.74656944]
[1761841685262,0.01389,108240.0,108230.0,0.092404]
[1761841685468,0.01389,108240.0,108230.0,1.78763184]
[1761841685667,0.01389,108240.0,108230.0,1.79039184]
[1761841685876,0.01337,108250.0,108240.0,0.0923954]
[1761841686169,0.05647,108250.0,108240.0,0.95974582]
[1761841686476,0.05647,108250.0,108240.0,0.9337198]
[1761841686667,0.05647,108250.0,108240.0,0.6934576]
[1761841687178,0.05647,108250.0,108240.0,0.52553864]
[1761841687372,0.05647,108250.0,108240.0,1.08720084]
[1761841687567,0.05647,108250.0,108240.0,0.76580084]
[1761841687871,0.05647,108250.0,108240.0,1.11336664]
[1761841688076,0.01337,108250.0,108240.0,1.35362884]
[1761841688366,0.01337,108250.0,108240.0,1.41915736]
[1761841688667,0.05647,108250.0,108240.0,1.41915736]
[1761841689272,0.05647,108250.0,108240.0,1.17889516]
[1761841689864,0.05647,108250.0,108240.0,1.41915736]
[1761841690071,0.01337,108250.0,108240.0,1.41915736]
[1761841690267,0.01337,108250.0,108240.0,1.35362884]
[1761841690467,0.01337,108250.0,108240.0,1.42191736]
[1761841690667,0.01337,108260.0,108250.0,0.0923869]
[1761841690869,0.01337,108260.0,108250.0,0.7196549]
[1761841691267,0.05647,108260.0,108250.0,0.7196549]
[1761841691467,0.01337,108260.0,108250.0,0.7196549]
[1761841691660,0.03437,108260.0,108250.0,0.7196549]
[1761841691873,0.01337,108260.0,108250.0,0.7196549]
[1761841692060,0.03437,108260.0,108250.0,0.7196549]
[1761841692777,0.01337,108260.0,108250.0,0.7196549]
[1761841692964,0.03437,108260.0,108250.0,0.7196549]
[1761841693166,0.01337,108260.0,108250.0,0.7196549]
[1761841693771,0.03437,108260.0,108250.0,0.7196549]
[1761841693970,0.01337,108260.0,108250.0,0.7196549]
[1761841694172,0.03437,108260.0,108250.0,0.4793927]
[1761841694375,0.03437,108260.0,108250.0,0.7196549]
[1761841694765,0.01337,108260.0,108250.0,0.7196549]
[1761841695074,0.00828832,108260.0,108250.0,0.7196549]
[1761841696573,0.05090832,108260.0,108250.0,0.7196549]
[1761841696971,0.00828832,108260.0,108250.0,0.7196549]
[1761841697170,0.00828832,108260.0,108250.0,1.0407349]